fUST/lending_fUST_20260612
["ID","MTS","AMOUNT","RATE_DAILY","PERIOD"]
[424898732,1781256639000,-500.0,0.00034436,7]
[424898723,1781256639000,-500.0,0.00034436,7]
[424898735,1781256639000,-500.0,0.00034439,7]
[424898737,1781256639000,-700941.3351,0.0003444,30]
[424898707,1781256639000,-500.0,0.00034436,7]
[424898690,1781256639000,-500.0,0.00034436,7]
[424898703,1781256639000,-500.0,0.00034436,7]
[424898702,1781256639000,-500.0,0.00034436,7]
[424898700,1781256639000,-500.0,0.00034436,7]
[424898698,1781256639000,-500.0,0.00034436,7]
[424898696,1781256639000,-500.0,0.00034436,7]
[424898694,1781256639000,-493.04742632,0.00034436,7]
[424898681,1781256639000,-500.0,0.00034436,7]
[424898692,1781256639000,-500.0,0.00034436,7]
[424898684,1781256639000,-500.0,0.00034436,7]
[424898682,1781256639000,-500.0,0.00034436,7]
[424898679,1781256639000,-500.0,0.00034436,7]
[424898677,1781256639000,-500.0,0.00034436,7]
[424898721,1781256639000,-500.0,0.00034436,7]
[424898705,1781256639000,-500.0,0.00034436,7]
[424898739,1781256639000,-816.31645545,0.00034463,2]
[424898745,1781256639000,-816.31645545,0.0003465,2]
[424898727,1781256639000,-500.0,0.00034436,7]
[424898725,1781256639000,-500.0,0.00034436,7]
[424898793,1781256639000,-8246.18349024,0.00035329,2]
[424898790,1781256639000,-595270.25564599,0.00035329,2]
[424898774,1781256639000,-500.0,0.00035328,7]
[424898786,1781256639000,-158.504181,0.00035329,7]
[424898784,1781256639000,-500.0,0.00035328,7]
[424898775,1781256639000,-221.44971404,0.00035328,7]
[424898781,1781256639000,-279.83267772,0.00035328,7]
[424898783,1781256639000,-500.0,0.00035328,7]
[424898779,1781256639000,-500.0,0.00035328,7]
[424898777,1781256639000,-500.0,0.00035328,7]
[424898772,1781256639000,-500.0,0.00035328,7]
[424898770,1781256639000,-500.0,0.00035328,7]
[424898788,1781256639000,-300.011615,0.00035329,7]
[424898766,1781256639000,-283.35552461,0.00035328,7]
[424898741,1781256639000,-816.31645545,0.00034525,2]
[424898768,1781256639000,-362.37933092,0.00035328,7]
[424898747,1781256639000,-816.31645545,0.00034713,2]
[424898759,1781256639000,-300.0,0.00035233,38]
[424898757,1781256639000,-784.0306592,0.00035132,2]
[424898761,1781256639000,-554.7668251,0.00035278,7]
[424898743,1781256639000,-816.31645545,0.00034588,2]
[424898749,1781256639000,-816.31645545,0.00034775,2]
[424898762,1781256639000,-403.30167926,0.00035328,7]
[424898755,1781256639000,-1000.0,0.00035,5]
[424898751,1781256639000,-816.31645545,0.00034838,2]
[424898753,1781256639000,-816.31645545,0.000349,2]
[424898764,1781256639000,-500.0,0.00035328,7]
[424898906,1781256640000,-7114.47732637,0.00035329,2]
[424899176,1781256642000,-687.37060269,0.00035329,2]
[424899185,1781256642000,-3576.91254535,0.00035329,2]
[424899178,1781256642000,-628.1247688,0.00035329,2]
[424899187,1781256643000,-22291.35696604,0.00035329,2]
[424899193,1781256643000,-34027.94280443,0.00035329,2]
[424899189,1781256643000,-766.0873,0.00035329,2]
[424899191,1781256643000,-12623.34108908,0.00035329,2]
[424899546,1781256646000,-379.01511469,0.00035329,2]
[424899544,1781256646000,-13270.57507934,0.00035329,2]
[424899573,1781256646000,-6967.4,0.00035329,2]
[424899595,1781256646000,-3736.92629399,0.00035329,2]
[424899579,1781256646000,-5453.058894,0.00035329,2]
[424899593,1781256646000,-29107.67765022,0.00035329,2]
[424899575,1781256646000,-84175.74853452,0.00035329,2]
[424899627,1781257156000,5000.0,0.00024658,30]
[424899628,1781257165000,5000.0,0.00024658,30]
[424899731,1781257832000,-305.668248,0.00020897,9]
[424899734,1781257832000,-1271.26572971,0.00021108,9]
[424899735,1781257832000,-4622.46584336,0.00022196,2]
[424899732,1781257832000,-4694.331752,0.00020897,9]
[424899733,1781257832000,-2671.82863311,0.00021108,9]
[424899737,1781257832000,-300.0,0.00022639,10]
[424899738,1781257832000,-300.0,0.00022639,10]
[424899739,1781257832000,-300.0,0.00022639,10]
[424899740,1781257832000,-300.0,0.00022639,10]
[424899741,1781257832000,-183.30478476,0.00022639,10]
[424899736,1781257832000,-73.41675749,0.00022196,2]
[424899792,1781257838000,-300.0,0.00022639,10]
[424899811,1781257838000,-864.0,0.0002794,30]
[424899809,1781257838000,-720.0,0.000254,10]
[424899807,1781257838000,-600.0,0.00023091,10]
[424899795,1781257838000,-300.0,0.00022639,10]
[424899793,1781257838000,-300.0,0.00022639,10]
[424899790,1781257838000,-300.0,0.00022639,10]
[424899819,1781257838000,-234.547881,0.00030156,7]
[424899805,1781257838000,-300.0,0.00022639,10]
[424899804,1781257838000,-300.0,0.00022639,10]
[424899800,1781257838000,-300.0,0.00022639,10]
[424899798,1781257838000,-300.0,0.00022639,10]
[424899788,1781257838000,-300.0,0.00022639,10]
[424899786,1781257838000,-116.69521524,0.00022639,10]
[424899802,1781257838000,-300.0,0.00022639,10]
[424899817,1781257838000,-588.0229944,0.00029601,2]
[424899813,1781257838000,-1000.0,0.00027987,30]
[424899815,1781257838000,-198.8618904,0.00028064,120]
[424899835,1781257838000,-588.0229944,0.00033034,2]
[424899837,1781257838000,-380.280752,0.00033542,2]
[424899833,1781257838000,-161.0,0.00033,120]
[424899847,1781257838000,-14173.16744147,0.00033697,2]
[424899831,1781257838000,-161.0,0.00033,120]
[424899843,1781257838000,-51918.77829194,0.00033697,2]
[424899840,1781257838000,-5131.62396307,0.00033697,2]
[424899830,1781257838000,-190.636,0.00032999,34]
[424899844,1781257838000,-1129.39074962,0.00033697,2]
[424899820,1781257838000,-1000.0,0.00030734,30]
[424899824,1781257838000,-161.0,0.00032,120]
[424899838,1781257838000,-300.0,0.00033697,2]
[424899822,1781257838000,-588.0229944,0.00031318,2]
[424899826,1781257838000,-5.44134958,0.00032187,2]
[424899828,1781257838000,-374.83940242,0.00032187,2]
[424900095,1781257840000,-4593.12568137,0.00033697,2]
[424900093,1781257840000,-266.63,0.00033687,3]
[424900375,1781257843000,-4133.93835324,0.00033697,2]
[424900371,1781257843000,-735.48143251,0.00033697,2]
[424900369,1781257843000,-1964.45983776,0.00033697,2]
[424900367,1781257843000,-2626.99187919,0.00033697,2]
[424900344,1781257843000,-747.86,0.00033697,2]
[424900658,1781257846000,-56203.23674744,0.00033697,2]
[424900634,1781257846000,-1797.50785749,0.00033697,2]
[424901796,1781258051000,5000.0,0.00024658,30]
[424901802,1781258247000,9999.0,7.6e-05,2]
[424901803,1781258247000,25001.0,7.6e-05,2]
[424901892,1781259033000,-763.77151649,0.00011059,2]
[424901891,1781259033000,-1072.79116158,0.00011059,2]
[424901886,1781259033000,-994.67350662,0.00011059,2]
[424901885,1781259033000,-1886.69088587,0.00010948,2]
[424901889,1781259033000,-379.60612435,0.00011059,2]
[424901956,1781259038000,-580.46239662,0.00011059,2]
[424901974,1781259038000,-405.01564944,0.00011059,2]
[424901976,1781259038000,-288.93396384,0.00011493,2]
[424901979,1781259038000,-372.95726128,0.00011493,2]
[424901977,1781259038000,-127.04273872,0.00011493,2]
[424901983,1781259038000,-500.0,0.00011493,2]
[424901985,1781259038000,-500.0,0.00011493,2]
[424901981,1781259038000,-500.0,0.00011493,2]
[424901986,1781259038000,-500.0,0.00011493,2]
[424901988,1781259038000,-500.0,0.00011493,2]
[424901999,1781259038000,-500.0,0.00011499,2]
[424902001,1781259038000,-214.1207989,0.000115,2]
[424901990,1781259038000,-500.0,0.00011493,2]
[424901996,1781259038000,-500.0,0.00011493,2]
[424901992,1781259038000,-500.0,0.00011493,2]
[424901997,1781259038000,-500.0,0.00011493,2]
[424901994,1781259038000,-500.0,0.00011493,2]
[424902431,1781259046000,-15875.0,0.000115,2]
[424902429,1781259046000,-4196.3203551,0.000115,2]
[424902465,1781259615000,-320.0,0.00010827,2]
[424902534,1781260232000,-248.68132124,0.00010297,2]
[424902533,1781260232000,-221.87598124,0.00010194,2]
[424902537,1781260232000,-433.45811007,0.00010297,2]
[424902535,1781260232000,-456.36036086,0.00010297,2]
[424902581,1781260238000,-282.91809,0.00016389,2]
[424902560,1781260238000,-3861.50020783,0.00010297,2]
[424902573,1781260238000,-261.92526,0.00013699,2]
[424902575,1781260238000,-1000.0,0.00013699,2]
[424902562,1781260238000,-7435.0,0.00011,2]
[424902564,1781260238000,-3144.86891037,0.000115,2]
[424902568,1781260238000,-300.0,0.00011729,2]
[424902572,1781260238000,-518.20445619,0.00013698,2]
[424902566,1781260238000,-323.98387839,0.00011598,7]
[424902570,1781260238000,-1634.76791895,0.00012,2]
[424902577,1781260238000,-282.91809,0.00015117,2]
[424902579,1781260238000,-282.91809,0.00015753,2]
[424902585,1781260238000,-612.74010089,0.00016991,2]
[424902605,1781260238000,-612.74010089,0.00016991,2]
[424902596,1781260238000,-612.74010089,0.00016991,2]
[424902589,1781260238000,-612.74010089,0.00016991,2]
[424902591,1781260238000,-612.74010089,0.00016991,2]
[424902583,1781260238000,-386.54633424,0.00016892,2]
[424902592,1781260238000,-317.57316957,0.00016991,2]
[424902598,1781260238000,-612.74010089,0.00016991,2]
[424902594,1781260238000,-612.74010089,0.00016991,2]
[424902600,1781260238000,-612.74010089,0.00016991,2]
[424902602,1781260238000,-612.74010089,0.00016991,2]
[424902604,1781260238000,-612.74010089,0.00016991,2]
[424902587,1781260238000,-612.74010089,0.00016991,2]
[424902663,1781260239000,-500.0,0.00016991,2]
[424902670,1781260239000,-500.0,0.00016991,2]
[424902664,1781260239000,-500.0,0.00016991,2]
[424902668,1781260239000,-500.0,0.00016991,2]
[424902701,1781260239000,-612.74010089,0.00016991,2]
[424902661,1781260239000,-500.0,0.00016991,2]
[424902659,1781260239000,-500.0,0.00016991,2]
[424902651,1781260239000,-612.74010089,0.00016991,2]
[424902649,1781260239000,-500.0,0.00016991,2]
[424902672,1781260239000,-500.0,0.00016991,2]
[424902666,1781260239000,-500.0,0.00016991,2]
[424902646,1781260239000,-500.0,0.00016991,2]
[424902684,1781260239000,-500.0,0.00016991,2]
[424902676,1781260239000,-500.0,0.00016991,2]
[424902678,1781260239000,-500.0,0.00016991,2]
[424902680,1781260239000,-500.0,0.00016991,2]
[424902682,1781260239000,-500.0,0.00016991,2]
[424902686,1781260239000,-500.0,0.00016991,2]
[424902692,1781260239000,-500.0,0.00016991,2]
[424902688,1781260239000,-500.0,0.00016991,2]
[424902690,1781260239000,-500.0,0.00016991,2]
[424902695,1781260239000,-500.0,0.00016991,2]
[424902694,1781260239000,-500.0,0.00016991,2]
[424902674,1781260239000,-500.0,0.00016991,2]
[424902647,1781260239000,-500.0,0.00016991,2]
[424902730,1781260239000,-500.0,0.00016991,2]
[424902653,1781260239000,-500.0,0.00016991,2]
[424902699,1781260239000,-500.0,0.00016991,2]
[424902616,1781260239000,-500.84930981,0.00016991,2]
[424902618,1781260239000,-500.0,0.00016991,2]
[424902621,1781260239000,-500.0,0.00016991,2]
[424902607,1781260239000,-612.74010089,0.00016991,2]
[424902609,1781260239000,-612.74010089,0.00016991,2]
[424902611,1781260239000,-500.0,0.00016991,2]
[424902614,1781260239000,-551.21027201,0.00016991,2]
[424902613,1781260239000,-500.0,0.00016991,2]
[424902623,1781260239000,-500.0,0.00016991,2]
[424902622,1781260239000,-612.74010089,0.00016991,2]
[424902626,1781260239000,-500.61635798,0.00016991,2]
[424902625,1781260239000,-500.0,0.00016991,2]
[424902639,1781260239000,-500.0,0.00016991,2]
[424902637,1781260239000,-612.74010089,0.00016991,2]
[424902628,1781260239000,-470.04656491,0.00016991,2]
[424902635,1781260239000,-500.0,0.00016991,2]
[424902631,1781260239000,-612.74010089,0.00016991,2]
[424902633,1781260239000,-500.0,0.00016991,2]
[424902630,1781260239000,-500.0,0.00016991,2]
[424902641,1781260239000,-500.0,0.00016991,2]
[424902643,1781260239000,-500.0,0.00016991,2]
[424902654,1781260239000,-500.0,0.00016991,2]
[424902658,1781260239000,-500.0,0.00016991,2]
[424902656,1781260239000,-500.0,0.00016991,2]
[424902644,1781260239000,-500.0,0.00016991,2]
[424902697,1781260239000,-612.74010089,0.00016991,2]
[424902757,1781260239000,-500.0,0.00016991,2]
[424902705,1781260239000,-500.0,0.00016991,2]
[424902758,1781260239000,-500.0,0.00016991,2]
[424902775,1781260239000,-500.0,0.00016999,2]
[424902772,1781260239000,-500.0,0.00016999,2]
[424902779,1781260239000,-10217.56250442,0.00017,2]
[424902778,1781260239000,-7351.05012648,0.00017,2]
[424902762,1781260239000,-500.0,0.00016991,2]
[424902767,1781260239000,-500.0,0.00016996,2]
[424902760,1781260239000,-500.0,0.00016991,2]
[424902765,1781260239000,-524.40562661,0.00016991,2]
[424902703,1781260239000,-500.0,0.00016991,2]
[424902769,1781260239000,-500.0,0.00016998,2]
[424902753,1781260239000,-500.0,0.00016991,2]
[424902781,1781260239000,-282.91809,0.00017026,2]
[424902786,1781260239000,-282.91809,0.00017662,2]
[424902788,1781260239000,-282.91809,0.00018298,2]
[424902792,1781260239000,-3181.99275675,0.00019205,5]
[424902790,1781260239000,-300.0,0.00019178,2]
[424902796,1781260239000,-500.0,0.00019999,2]
[424902799,1781260239000,-607.83522273,0.0002,3]
[424902794,1781260239000,-188.446,0.00019509,2]
[424902798,1781260239000,-11460.5517579,0.0002,5]
[424902804,1781260239000,-224.54583995,0.00021918,6]
[424902803,1781260239000,-386.5463342,0.00020179,2]
[424902801,1781260239000,-88677.29574556,0.0002,2]
[424902785,1781260239000,-512.67313995,0.00017546,2]
[424902751,1781260239000,-500.0,0.00016991,2]
[424902783,1781260239000,-500.0,0.00017272,2]
[424902750,1781260239000,-500.0,0.00016991,2]
[424902718,1781260239000,-500.0,0.00016991,2]
[424902715,1781260239000,-500.0,0.00016991,2]
[424902717,1781260239000,-500.0,0.00016991,2]
[424902707,1781260239000,-500.0,0.00016991,2]
[424902709,1781260239000,-500.0,0.00016991,2]
[424902711,1781260239000,-500.0,0.00016991,2]
[424902713,1781260239000,-500.0,0.00016991,2]
[424902724,1781260239000,-500.0,0.00016991,2]
[424902725,1781260239000,-500.0,0.00016991,2]
[424902728,1781260239000,-500.0,0.00016991,2]
[424902722,1781260239000,-500.0,0.00016991,2]
[424902720,1781260239000,-500.0,0.00016991,2]
[424902732,1781260239000,-500.0,0.00016991,2]
[424902734,1781260239000,-500.0,0.00016991,2]
[424902738,1781260239000,-500.0,0.00016991,2]
[424902736,1781260239000,-528.50674352,0.00016991,2]
[424902755,1781260239000,-500.0,0.00016991,2]
[424902740,1781260239000,-500.0,0.00016991,2]
[424902741,1781260239000,-500.0,0.00016991,2]
[424902743,1781260239000,-500.0,0.00016991,2]
[424902746,1781260239000,-500.0,0.00016991,2]
[424902748,1781260239000,-500.0,0.00016991,2]
[424902745,1781260239000,-500.0,0.00016991,2]
[424902727,1781260239000,-500.0,0.00016991,2]
[424902869,1781260240000,-207.7213131,0.000263,2]
[424902879,1781260240000,-1838.0,0.00026675,2]
[424902885,1781260240000,-296.95155179,0.0002804,7]
[424902883,1781260240000,-207.7213131,0.000268,2]
[424902865,1781260240000,-207.7213131,0.000257,2]
[424902867,1781260240000,-207.7213131,0.00026,2]
[424902877,1781260240000,-444.0,0.00026675,2]
[424902864,1781260240000,-195.58,0.000251,2]
[424902875,1781260240000,-189.733,0.00026675,2]
[424902881,1781260240000,-386.5463342,0.00026753,2]
[424902873,1781260240000,-2208.0,0.00026675,2]
[424902903,1781260240000,-234.29380569,0.00029496,6]
[424902897,1781260240000,-150.93,0.00029077,2]
[424902887,1781260240000,-183.36276675,0.00028161,2]
[424902890,1781260240000,-360.07,0.000288,2]
[424902892,1781260240000,-156.174,0.00029077,2]
[424902899,1781260240000,-250.0,0.00029077,2]
[424902895,1781260240000,-232.959,0.00029077,2]
[424902893,1781260240000,-221.107,0.00029077,2]
[424902901,1781260240000,-2000.0,0.00029195,7]
[424902889,1781260240000,-600.0,0.00028541,30]
[424902905,1781260240000,-228.16161589,0.00029496,6]
[424902857,1781260240000,-183.41,0.00024658,7]
[424902871,1781260240000,-207.7213131,0.000265,2]
[424902859,1781260240000,-152.82375472,0.00024915,7]
[424902912,1781260240000,-152.0,0.00030156,7]
[424902851,1781260240000,-156.58765989,0.00023783,2]
[424902808,1781260240000,-152.82375472,0.00022358,2]
[424902818,1781260240000,-152.82375472,0.00022558,2]
[424902806,1781260240000,-199.06375659,0.00022077,7]
[424902824,1781260240000,-386.5463342,0.00023466,2]
[424902822,1781260240000,-677.4885887,0.00022691,2]
[424902810,1781260240000,-211.4942313,0.00022413,2]
[424902820,1781260240000,-152.82375472,0.00022658,2]
[424902812,1781260240000,-152.27584653,0.00022421,2]
[424902816,1781260240000,-211.4942313,0.00022513,2]
[424902829,1781260240000,-155.11554805,0.00023727,2]
[424902831,1781260240000,-162.76481937,0.00023727,2]
[424902828,1781260240000,-450.0,0.00023517,2]
[424902833,1781260240000,-177.40071979,0.00023727,2]
[424902835,1781260240000,-167.16340423,0.00023727,2]
[424902837,1781260240000,-150.11138926,0.00023727,2]
[424902826,1781260240000,-298.59563487,0.00023494,7]
[424902846,1781260240000,-183.95896047,0.00023783,2]
[424902841,1781260240000,-178.0501986,0.00023783,2]
[424902840,1781260240000,-200.72510296,0.00023727,2]
[424902844,1781260240000,-175.49703954,0.00023783,2]
[424902849,1781260240000,-174.47682114,0.00023783,2]
[424902848,1781260240000,-205.10642028,0.00023783,2]
[424902853,1781260240000,-168.8384639,0.000238,120]
[424902855,1781260240000,-288.22,0.00024658,2]
[424902908,1781260240000,-386.5463342,0.00030039,2]
[424902814,1781260240000,-152.82375472,0.00022458,2]
[424902906,1781260240000,-186.0,0.00029675,2]
[424902965,1781260240000,-1500.05749776,0.00034439,30]
[424902954,1781260240000,-1500.05749776,0.00034439,30]
[424902968,1781260240000,-1500.05749776,0.00034439,30]
[424902971,1781260240000,-1500.05749776,0.00034439,30]
[424902980,1781260240000,-8894.25,0.0003444,30]
[424902973,1781260240000,-1500.05749776,0.00034439,30]
[424902986,1781260240000,-2000.0,0.00034598,7]
[424902984,1781260240000,-864.0,0.00034535,30]
[424902982,1781260240000,-1571.0,0.0003444,30]
[424902970,1781260240000,-1500.05749776,0.00034439,30]
[424902975,1781260240000,-1500.05749776,0.00034439,30]
[424902976,1781260240000,-1500.05749776,0.00034439,30]
[424902978,1781260240000,-1500.05749787,0.00034439,30]
[424902987,1781260240000,-798.0,0.000347,2]
[424902991,1781260240000,-2089.548523,0.00034721,120]
[424902992,1781260240000,-160.0,0.00034721,21]
[424902994,1781260240000,-216.160192,0.00034721,21]
[424902999,1781260240000,-182.004777,0.00034721,21]
[424902996,1781260240000,-272.320384,0.00034721,21]
[424902998,1781260240000,-752.886047,0.00034721,120]
[424903003,1781260240000,-1687.50083196,0.000349,18]
[424903001,1781260240000,-1687.50083201,0.000349,18]
[424902910,1781260240000,-152.0,0.00030156,7]
[424902958,1781260240000,-1500.05749776,0.00034439,30]
[424902961,1781260240000,-1500.05749776,0.00034439,30]
[424902989,1781260240000,-182.004777,0.00034721,120]
[424902966,1781260240000,-1500.05749776,0.00034439,30]
[424902959,1781260240000,-1500.05749776,0.00034439,30]
[424902914,1781260240000,-164.95,0.00030816,3]
[424902916,1781260240000,-1105.64883544,0.00031076,4]
[424902918,1781260240000,-153.53,0.00031201,3]
[424902922,1781260240000,-153.71,0.00031983,3]
[424902920,1781260240000,-720.0,0.00031396,30]
[424902923,1781260240000,-186.0,0.00032675,2]
[424902939,1781260240000,-395.02146195,0.00033563,2]
[424902927,1781260240000,-450.0,0.00033034,2]
[424902935,1781260240000,-1000.0,0.00033363,15]
[424902929,1781260240000,-250.0,0.00033034,2]
[424902937,1781260240000,-161.27,0.00033376,2]
[424902925,1781260240000,-209.55744772,0.00032944,2]
[424902933,1781260240000,-386.5463342,0.00033326,2]
[424902931,1781260240000,-153.73,0.00033051,3]
[424902963,1781260240000,-1500.05749776,0.00034439,30]
[424902951,1781260240000,-1500.05749776,0.00034439,30]
[424902952,1781260240000,-1500.05749776,0.00034439,30]
[424902949,1781260240000,-1500.05749776,0.00034439,30]
[424902956,1781260240000,-1500.05749776,0.00034439,30]
[424902946,1781260240000,-223.74192463,0.00034439,30]
[424902941,1781260240000,-161.0,0.00034,120]
[424902944,1781260240000,-1500.05749776,0.00034439,30]
[424902942,1781260240000,-160.83840463,0.00034,120]
[424902948,1781260240000,-1500.05749776,0.00034439,30]
[424903045,1781260241000,-343.84395745,0.00035345,2]
[424903031,1781260241000,-152.0,0.00035328,7]
[424903032,1781260241000,-384.68253485,0.00035329,2]
[424903049,1781260241000,-300.0,0.00035396,38]
[424903052,1781260241000,-151.0,0.00035429,7]
[424903047,1781260241000,-152.0,0.00035371,7]
[424903059,1781260241000,-612.74010089,0.00035429,7]
[424903060,1781260241000,-612.74010089,0.00035429,7]
[424903065,1781260241000,-612.74010089,0.00035429,7]
[424903054,1781260241000,-153.563179,0.00035429,7]
[424903055,1781260241000,-500.0,0.00035429,7]
[424903062,1781260241000,-612.74010089,0.00035429,7]
[424903064,1781260241000,-612.74010089,0.00035429,7]
[424903069,1781260241000,-612.74010089,0.00035429,7]
[424903027,1781260241000,-151.0,0.00035128,14]
[424903067,1781260241000,-612.74010089,0.00035429,7]
[424903050,1781260241000,-151.0,0.00035429,7]
[424903034,1781260241000,-439.63718268,0.00035329,2]
[424903015,1781260241000,-1687.50083196,0.000349,18]
[424903029,1781260241000,-151.0,0.00035128,14]
[424903072,1781260241000,-612.74010089,0.00035429,7]
[424903007,1781260241000,-1687.50083196,0.000349,18]
[424903005,1781260241000,-1687.50083196,0.000349,18]
[424903008,1781260241000,-1687.50083196,0.000349,18]
[424903010,1781260241000,-1687.50083196,0.000349,18]
[424903012,1781260241000,-1687.50083196,0.000349,18]
[424903013,1781260241000,-1687.50083196,0.000349,18]
[424903017,1781260241000,-1571.0,0.00034988,30]
[424903019,1781260241000,-300.0,0.00035068,37]
[424903024,1781260241000,-151.0,0.00035128,14]
[424903021,1781260241000,-225.865814,0.00035069,21]
[424903022,1781260241000,-160.0,0.00035127,3]
[424903038,1781260241000,-323.39014859,0.00035329,2]
[424903026,1781260241000,-298.97261569,0.00035128,14]
[424903036,1781260241000,-282.96638001,0.00035329,2]
[424903040,1781260241000,-505.29710717,0.00035329,2]
[424903043,1781260241000,-327.43351206,0.00035336,2]
[424903042,1781260241000,-1687.50083196,0.0003533,18]
[424903076,1781260241000,-612.74010089,0.00035429,7]
[424903057,1781260241000,-241.00406234,0.00035429,7]
[424903074,1781260241000,-612.74010089,0.00035429,7]
[424903122,1781260241000,-500.0,0.00035429,7]
[424903124,1781260241000,-612.74010089,0.00035429,7]
[424903114,1781260241000,-612.74010089,0.00035429,7]
[424903120,1781260241000,-612.74010089,0.00035429,7]
[424903118,1781260241000,-612.74010089,0.00035429,7]
[424903126,1781260241000,-612.74010089,0.00035429,7]
[424903128,1781260241000,-500.0,0.00035429,7]
[424903131,1781260241000,-612.74010089,0.00035429,7]
[424903133,1781260241000,-612.74010089,0.00035429,7]
[424903141,1781260241000,-500.0,0.00035429,7]
[424903137,1781260241000,-612.74010089,0.00035429,7]
[424903139,1781260241000,-502.71173629,0.00035429,7]
[424903135,1781260241000,-612.74010089,0.00035429,7]
[424903143,1781260241000,-500.0,0.00035429,7]
[424903144,1781260241000,-6902.06025526,0.00035429,4]
[424903147,1781260241000,-1345531.30222183,0.0003543,30]
[424903070,1781260241000,-612.74010089,0.00035429,7]
[424903111,1781260241000,-612.74010089,0.00035429,7]
[424903129,1781260241000,-612.74010089,0.00035429,7]
[424903116,1781260241000,-612.74010089,0.00035429,7]
[424903109,1781260241000,-612.74010089,0.00035429,7]
[424903085,1781260241000,-612.74010089,0.00035429,7]
[424903080,1781260241000,-612.74010089,0.00035429,7]
[424903082,1781260241000,-612.74010089,0.00035429,7]
[424903078,1781260241000,-612.74010089,0.00035429,7]
[424903084,1781260241000,-612.74010089,0.00035429,7]
[424903087,1781260241000,-612.74010089,0.00035429,7]
[424903112,1781260241000,-612.74010089,0.00035429,7]
[424903159,1781260241000,-267.77939956,0.00033563,2]
[424903091,1781260241000,-500.0,0.00035429,7]
[424903089,1781260241000,-612.74010089,0.00035429,7]
[424903095,1781260241000,-612.74010089,0.00035429,7]
[424903096,1781260241000,-612.74010089,0.00035429,7]
[424903098,1781260241000,-500.0,0.00035429,7]
[424903107,1781260241000,-500.0,0.00035429,7]
[424903102,1781260241000,-500.0,0.00035429,7]
[424903100,1781260241000,-612.74010089,0.00035429,7]
[424903104,1781260241000,-612.74010089,0.00035429,7]
[424903106,1781260241000,-612.74010089,0.00035429,7]
[424903093,1781260241000,-612.74010089,0.00035429,7]
[424903633,1781260246000,-1571.0,0.00035536,30]
[424903611,1781260246000,-3662.19266575,0.0003543,30]
[424903609,1781260246000,-183.67369982,0.00033563,2]
[424903631,1781260246000,-170.04,0.0003543,2]
[424903627,1781260246000,-934270.08621242,0.0003543,30]
[424903629,1781260246000,-151.0,0.0003543,7]
[424903635,1781260246000,-985.4477,0.00035616,18]
[424903628,1781260246000,-151.0,0.0003543,7]
[424903638,1781260246000,-500.0,0.00035616,18]
[424903651,1781260246000,-1005.43410746,0.00035616,2]
[424903647,1781260246000,-500.0,0.00035616,18]
[424903648,1781260246000,-500.0,0.00035616,18]
[424903640,1781260246000,-276.48633236,0.00035616,18]
[424903645,1781260246000,-500.0,0.00035616,18]
[424903642,1781260246000,-834.47,0.00035616,18]
[424903643,1781260246000,-500.0,0.00035616,18]
[424903636,1781260246000,-649.79,0.00035616,18]
[424903707,1781260247000,-1006.96658614,0.00035616,2]
[424903713,1781260247000,-500.0,0.00035616,18]
[424903705,1781260247000,-601.25753668,0.00035616,18]
[424903709,1781260247000,-501.14647546,0.00035616,18]
[424903711,1781260247000,-1346.64,0.00035616,18]
[424903723,1781260247000,-500.0,0.00035616,18]
[424903725,1781260247000,-500.0,0.00035616,18]
[424903714,1781260247000,-151.0,0.00035616,7]
[424903718,1781260247000,-1041.99,0.00035616,18]
[424903719,1781260247000,-505.30066888,0.00035616,18]